[Event "MCCT Oslo Esports Cup 2022"]
[Site "Oslo"]
[Date "2022.04.20"]
[Round "2.2"]
[White "Giri, Anish"]
[Black "Duda, Jan-Krzysztof"]
[Result "1/2-1/2"]
[ECO "D91"]
[WhiteElo "2773"]
[BlackElo "2750"]
[Annotator "TA"]
[PlyCount "119"]
[EventDate "2022.04.14"]
[EventType "tourn"]
[EventCountry "NOR"]
[SourceTitle "playchess.com"]
[Source "ChessBase"]
[SourceQuality "1"]
[TimeControl "1500+10"]

{[%evp 13,119,12,13,4,11,4,4,3,6,0,0,0,0,0,0,-73,-45,-35,-38,-43,-31,-43,-40,-38,-27,-7,-33,-65,-22,-48,0,0,53,50,52,50,102,72,119,71,66,58,143,142,115,120,129,-8,0,-24,-8,-62,133,110,132,140,121,132,114,126,123,74,72,37,59,56,591,575,464,0,0,0,0,0,0,0,0,0,0,0,0,0,0,0,0,0,0,0,0,0,0,-28000,-28000,-28000,-28000,-28000,-28000,-28000,-28000,-28000,-28000,-28000,-28000,-28000,-28000,-28000,-28000,-28000]} 1. d4 {[%emt 0:10:00]} Nf6 {[%emt 0:10:00]} 2. c4 {[%emt 0:00:02]} g6 {[%emt 0:00:01]} 3. Nc3 {[%emt 0:00:03]} d5 {[%emt 0:00:01]} 4. Nf3 {[%emt 0:00:04]} Bg7 {[%emt 0:00:02]} 5. Bg5 {[%emt 0:00:02]} Ne4 {[%emt 0:00:05]} 6. Bf4 {[%emt 0:00:00]} Nxc3 {[%emt 0:00:08]} 7. bxc3 {[%emt 0:00:02]} dxc4 {[%emt 0:00:30][%cal Oc7c5]} 8. e4 {[%emt 0:00:49] D91: Grünfeld: 4 Nf3 Bg7 5 Bg5.} b5 {[%emt 0:00:47]} 9. a4 {[%emt 0:00:02]} c6 {[%emt 0:00:01]} 10. h4 {[%emt 0:00:12] The position is equal.} Bg4 {[%emt 0:00:33] [#]} 11. h5 $146 {[%emt 0:00:05]} ({Predecessor:} 11. Qb1 a6 12. Ne5 Bxe5 13. Bxe5 f6 14. Bg3 Nd7 15. f3 Be6 16. h5 g5 17. Be2 {0-1 (85) Lagergren,H (1913)-Parushev,A (2302) ICCF email 2017}) 11... Bxh5 {[%emt 0:04:36]} 12. Rxh5 {[%emt 0:00:02]} gxh5 {[%emt 0:00:00]} 13. e5 {[%emt 0:00:03]} Qd5 {[%emt 0:01:28]} 14. Qe2 {[%emt 0:02:11]} (14. axb5 $11 {remains equal.} cxb5 15. Be2) 14... b4 {[%emt 0:01:17]} 15. cxb4 {[%emt 0:00:22]} Na6 $1 {[%emt 0:00:06]} 16. Bd2 {[%emt 0:03:47]} Rb8 {[%emt 0:00:46]} 17. b5 {[%emt 0:00:21]} cxb5 {[%emt 0:03:11]} 18. axb5 {[%emt 0:00:01] [#]} c3 $1 {[%emt 0:00:01]} 19. Bxc3 {[%emt 0:01:52]} Nc7 {[%emt 0:00:03][%cal Rc7b5]} 20. Ra5 {[%emt 0:00:02]} Qb3 {[%emt 0:00:34]} (20... a6 $5 21. Qc2 (21. bxa6 $2 Rb1+ 22. Kd2 Bh6+ 23. Kd3 Qc6 $19) 21... axb5 $15) 21. Qd3 {[%emt 0:00:51]} Bh6 {[%emt 0:00:27]} (21... O-O $15 {feels stronger.}) 22. Nd2 $11 {[%emt 0:01:18]} Qe6 {[%emt 0:01:23]} ({Black should try} 22... Bxd2+ $11 23. Bxd2 Qxd3 24. Bxd3 Nd5) 23. Rxa7 $14 {[%emt 0:00:54]} Qb6 {[%emt 0:00:02]} 24. Ra3 {[%emt 0:01:02]} Qg6 {[%emt 0:01:42]} (24... Nxb5 $2 25. Qxb5+ Qxb5 26. Bxb5+ Kf8 27. Bc6 $18) (24... O-O $14) 25. Ba5 {[%emt 0:02:55]} Ne6 {[%emt 0:01:07]} (25... Nxb5 $2 26. Rb3 $18) (25... Bxd2+ $142 26. Kxd2 (26. Bxd2 O-O $11) 26... Qxd3+ 27. Bxd3 Kd7) 26. Qxg6 {[%emt 0:00:47]} (26. d5 $142 Qxd3 27. Bxd3) 26... hxg6 $16 {[%emt 0:00:03]} 27. d5 {[%emt 0:00:04]} Nf4 {[%emt 0:00:14]} (27... Nd4 $14 28. Ra4 Ra8 $1) 28. Bc7 {[%emt 0:00:16] A strong pair of Bishops.} O-O {[%emt 0:00:11]} 29. d6 {[%emt 0:00:19]} exd6 {[%emt 0:00:11]} 30. Bxd6 {[%emt 0:00:18]} (30. Bxb8 $16 Rxb8 31. exd6) 30... Rfc8 $11 {[%emt 0:00:06][%cal Rc8c1]} 31. Kd1 {[%emt 0:00:19] Against Rc1+} Bf8 {[%emt 0:00:12] Black wants to play ...Bxd6.} (31... Rb7 $5 {[%cal Rf4d5]}) 32. Ra7 {[%emt 0:00:37]} (32. Bc4 $1 $11) 32... Rb6 $2 {[%emt 0:00:26]} (32... Bxd6 $15 {keeps the upper hand.} 33. exd6 Nd5) 33. Bc7 $36 {[%emt 0:00:11][%mdl 2048] White is in control. &Bianco is more active.} Bc5 {[%emt 0:00:14][%cal Ob6b5] Hoping for ...Rxb5!} 34. Bxb6 {[%emt 0:00:21]} Bxb6 {[%emt 0:00:00]} 35. Rd7 {[%emt 0:00:17]} Bxf2 {[%emt 0:00:10]} 36. Bc4 {[%emt 0:00:00]} Ne6 {[%emt 0:00:15]} 37. Bxe6 {[%emt 0:00:14]} (37. Rd6 $142 {And now Rxe6 would win.} Rb8 38. Ne4 (38. Bxe6 fxe6 39. Ne4 Bg1 $11)) 37... fxe6 {[%emt 0:00:00][%mdl 4096] Endgame KRB-KRN} 38. Ne4 {[%emt 0:00:01]} (38. Ke2 $5 {[%cal Re2f2]} Bg3 39. b6 Bxe5 40. Kd3 $16) 38... Be3 {[%emt 0:00:02]} 39. Ke2 {[%emt 0:00:08]} Bf4 {[%emt 0:00:01][%mdl 8192] [#]} ({Better is} 39... Bg1 $1 $14) 40. Nf6+ $1 $18 {[%emt 0:00:08]} Kf8 {[%emt 0:00:03] [#]} 41. Rd4 $2 {[%emt 0:00:12]} (41. Ra7 $1 $18) 41... g5 $11 {[%emt 0:00:29]} ({Don't take} 41... Rc2+ 42. Kd3 Rd2+ 43. Ke4 $16) 42. b6 {[%emt 0:00:08]} Rc2+ {[%emt 0:00:04]} 43. Kd3 {[%emt 0:00:07]} Rb2 {[%emt 0:00:05]} 44. Kc3 {[%emt 0:00:31]} Rb1 {[%emt 0:00:20]} 45. Kc2 {[%emt 0:00:13]} Rb5 {[%emt 0:00:05]} 46. Nxh5 {[%emt 0:00:16]} Bxe5 {[%emt 0:00:06]} 47. Rg4 {[%emt 0:00:03]} Bd6 {[%emt 0:00:22]} 48. Nf6 {[%emt 0:00:10]} Be7 {[%emt 0:00:19]} 49. Ne4 {[%emt 0:00:10]} Kf7 {[%emt 0:00:04]} 50. Rg3 {[%emt 0:00:04]} Rxb6 {[%emt 0:00:11]} 51. Nxg5+ {[%emt 0:00:01]} Bxg5 $2 {[%emt 0:00:01][%mdl 8192]} (51... Kf6 $11) 52. Rxg5 {[%emt 0:00:01] KR-KR} Kf6 {[%emt 0:00:01] Mate.} 53. Rh5 {[%emt 0:00:05]} Rd6 {[%emt 0:00:01]} 54. g4 {[%emt 0:00:12]} Rd4 {[%emt 0:00:02]} 55. Kc3 {[%emt 0:00:03]} Rxg4 {[%emt 0:00:07]} 56. Kd3 {[%emt 0:00:01]} e5 {[%emt 0:00:03]} 57. Ke3 {[%emt 0:00:01]} e4 {[%emt 0:00:01]} 58. Ra5 {[%emt 0:00:02]} Rg5 {[%emt 0:00:01]} 59. Rxg5 {[%emt 0:00:02]} Kxg5 {[%emt 0:00:00]} 60. Kxe4 {[%emt 0:00:00][%mdl 32768] Quite a comeback for Black.  Weighted Error Value: White=0.19 (very precise) /Black=0.29 (precise) . An unexpected result.} 1/2-1/2

[Event "MCCT Oslo Esports Cup 2022"]
[Site "Oslo"]
[Date "2022.04.20"]
[Round "2.2"]
[White "Mamedyarov, Shakhriyar"]
[Black "Praggnanandhaa R"]
[Result "1/2-1/2"]
[ECO "D41"]
[WhiteElo "2771"]
[BlackElo "2624"]
[Annotator "TA"]
[PlyCount "77"]
[EventDate "2022.04.14"]
[EventType "tourn"]
[EventCountry "NOR"]
[SourceTitle "playchess.com"]
[Source "ChessBase"]
[SourceQuality "1"]
[TimeControl "1500+10"]

{[%evp 26,77,27,0,0,0,4,7,11,-59,-2,-31,-12,-8,-7,-71,-17,-12,-12,-9,-12,-18,-13,-21,-2,-1,0,0,0,0,0,0,0,0,0,0,0,0,0,0,0,0,0,0,0,0,0,0,0,0,0,-8,0,0]} 1. d4 {[%emt 0:10:00]} Nf6 {[%emt 0:10:00]} 2. c4 {[%emt 0:00:01]} e6 {[%emt 0:00:02]} 3. Nf3 {[%emt 0:00:02]} d5 {[%emt 0:00:01]} 4. Nc3 {[%emt 0:00:00]} c5 {[%emt 0:00:01]} 5. cxd5 {[%emt 0:00:04]} Nxd5 {[%emt 0:00:01]} 6. e4 {[%emt 0:00:01]} Nxc3 {[%emt 0:00:02]} 7. bxc3 {[%emt 0:00:00]} cxd4 {[%emt 0:00:00]} 8. cxd4 {[%emt 0:00:00]} Bb4+ {[%emt 0:00:01]} 9. Bd2 {[%emt 0:00:01]} Bxd2+ {[%emt 0:00:01]} 10. Qxd2 {[%emt 0:00:00]} O-O {[%emt 0:00:02]} 11. Bc4 {[%emt 0:00:02]} Nd7 {[%emt 0:00:01]} 12. O-O {[%emt 0:00:01]} b6 {[%emt 0:00:01]} 13. Rfe1 {[%emt 0:00:02]} Bb7 {[%emt 0:00:01]} 14. Rad1 {[%emt 0:00:01]} Rc8 {[%emt 0:00:02] D41: Queen's Gambit Declined: Semi-Tarrasch with 5 cxd5.} 15. Bb3 {[%emt 0:00:01]} Re8 {[%emt 0:00:05]} 16. d5 {[%emt 0:00:05]} exd5 {[%emt 0:00:17] [#]} 17. e5 $146 {[%emt 0:00:02]} (17. exd5 $11 Nf6 18. d6 Bxf3 19. gxf3) ({Predecessor:} 17. exd5 Nc5 18. d6 Bxf3 19. Rxe8+ Qxe8 20. gxf3 Qc6 21. Qg5 Re8 22. Kg2 Qd7 23. Bc4 {½-½ (37) Duda,J (2729)-Ding,L (2799) chess24.com INT 2021}) 17... Qc7 {[%emt 0:03:36]} (17... Rc5 $15) 18. Qe3 {[%emt 0:02:03]} h6 {[%emt 0:03:24]} 19. h3 {[%emt 0:00:10]} Re7 {[%emt 0:02:16]} 20. Ba4 {[%emt 0:03:29] [#]} (20. Bxd5 $11 Bxd5 21. Rxd5) 20... d4 {[%emt 0:01:14]} ({Black should try} 20... Nxe5 $1 $17 21. Nxe5 f6) 21. Rxd4 $11 {[%emt 0:01:35] The position is equal.} Bxf3 {[%emt 0:01:45]} 22. Bxd7 {[%emt 0:00:08]} Rxd7 {[%emt 0:00:03]} 23. Rxd7 {[%emt 0:00:01]} Qxd7 {[%emt 0:00:01]} 24. Qxf3 {[%emt 0:00:00][%mdl 4096] Endgame KQR-KQR} Rc5 {[%emt 0:00:36]} 25. Rd1 {[%emt 0:01:31]} Qc8 {[%emt 0:00:25]} (25... Qe6 {seems wilder.} 26. Rd8+ Kh7 27. Qd3+ Qg6) 26. Qe4 {[%emt 0:00:49]} Rc1 {[%emt 0:00:27]} 27. Rxc1 {[%emt 0:00:02]} Qxc1+ {[%emt 0:00:00] KQ-KQ} 28. Kh2 {[%emt 0:00:01]} Qd2 {[%emt 0:00:28][%csl LRa2,LRf2]} 29. Qa8+ {[%emt 0:05:00]} Kh7 {[%emt 0:00:04]} 30. Qe4+ {[%emt 0:00:01]} g6 {[%emt 0:01:23]} 31. f4 {[%emt 0:01:09]} Qxa2 {[%emt 0:00:02]} 32. f5 {[%emt 0:00:00] Against Qe6} gxf5 {[%emt 0:00:08]} 33. Qxf5+ {[%emt 0:00:00]} Kg8 {[%emt 0:00:01] [#] ...Qe6 is the strong threat.} 34. Qg4+ {[%emt 0:00:10]} Kf8 {[%emt 0:00:01] White must now prevent ...Qe6.} 35. Qc8+ {[%emt 0:00:00]} Kg7 {[%emt 0:00:03] Hoping for ...Qe6.} 36. Qg4+ {[%emt 0:00:02]} Kf8 {[%emt 0:00:00] And now ...Qe6 would win.} 37. Qc8+ {[%emt 0:00:00]} Ke7 {[%emt 0:00:24] White should prevent ...Qe6.} 38. Qc7+ {[%emt 0:00:02]} Kf8 {[%emt 0:02:03] Strongly threatening ...Kg7.} 39. Qc8+ {[%emt 0:00:07] Weighted Error Value: White=0.12 (very precise) /Black=0.11 (very precise)} 1/2-1/2

[Event "MCCT Oslo Esports Cup 2022"]
[Site "Oslo"]
[Date "2022.04.20"]
[Round "2.2"]
[White "Van Foreest, Jorden"]
[Black "Hansen, Eric"]
[Result "1-0"]
[ECO "B41"]
[WhiteElo "2714"]
[BlackElo "2606"]
[Annotator "TA"]
[PlyCount "107"]
[EventDate "2022.04.14"]
[EventType "tourn"]
[EventCountry "NOR"]
[SourceTitle "playchess.com"]
[Source "ChessBase"]
[SourceQuality "1"]
[TimeControl "1500+10"]

{[%evp 13,107,32,60,56,56,47,58,43,52,42,62,22,23,-58,25,7,0,0,0,0,0,0,0,-98,-106,-80,15,21,42,22,59,54,68,74,54,58,132,136,125,123,130,83,137,117,209,201,284,271,277,282,276,289,270,273,291,256,258,268,300,258,320,321,337,257,239,224,229,237,229,232,222,225,217,209,205,205,201,176,252,179,190,196,190,176,219,183,380,360,311,296,5064,5064,5031,4990,4598,2596]} 1. e4 {[%emt 0:10:00]} c5 {[%emt 0:10:00]} 2. Nf3 {[%emt 0:00:08]} e6 {[%emt 0:00:12]} 3. d4 {[%emt 0:00:14]} cxd4 {[%emt 0:00:01]} 4. Nxd4 {[%emt 0:00:01]} a6 {[%emt 0:00:00]} 5. c4 {[%emt 0:00:13]} Nf6 {[%emt 0:00:31]} 6. Nc3 {[%emt 0:00:08]} Qc7 {[%emt 0:00:16]} 7. a3 {[%emt 0:00:07]} b6 {[%emt 0:00:07]} 8. Be2 {[%emt 0:00:13] B41: Sicilian: Kan Variation: 5 c4.} Bb7 {[%emt 0:00:00]} 9. f3 {[%emt 0:00:02]} d6 {[%emt 0:00:02]} 10. Be3 {[%emt 0:00:03] White is slightly better.} Nbd7 {[%emt 0:00:01]} 11. Rc1 {[%emt 0:00:03]} Be7 {[%emt 0:00:15] [#]} 12. Kd2 $1 $146 {[%emt 0:00:14][%mdl 8] A top novelty.} ({Predecessor:} 12. O-O O-O 13. b4 Rac8 14. Nb3 Qb8 15. Qd2 Rfd8 16. Rfd1 Bc6 17. Qe1 h6 18. Qf2 {½-½ (69) Firouzja,A (2682)-Sevian,S (2666) Chess.com INT 2019}) 12... O-O {[%emt 0:00:27]} 13. Kc2 {[%emt 0:00:22]} (13. g4 $11) 13... Rfc8 {[%emt 0:00:01]} ({Better is} 13... d5 $1 $15 14. cxd5 exd5) 14. Kb1 {[%emt 0:00:02]} Ne5 {[%emt 0:00:10]} 15. g4 {[%emt 0:00:30]} Qd8 {[%emt 0:00:10]} (15... Nxc4 $2 16. Bxc4 Nd7 17. Bb3 $18) 16. Qf1 {[%emt 0:01:46]} b5 {[%emt 0:03:24][%cal Re5c4]} 17. cxb5 {[%emt 0:00:14]} axb5 {[%emt 0:00:00]} 18. Bxb5 {[%emt 0:01:01]} (18. Ndxb5 $11 d5 19. g5) 18... d5 $1 $17 {[%emt 0:00:03][%cal Oe7a3] White must now prevent ...Bxa3!} 19. g5 {[%emt 0:00:16] [#]} Nh5 {[%emt 0:00:51]} (19... Ne8 $1 $17 {[%cal Oe7a3] Threatens to win with ...Bxa3!} 20. exd5 Bxd5) 20. exd5 $11 {[%emt 0:00:34]} exd5 {[%emt 0:00:07][%cal Oe7a3]} 21. Qe2 $36 {[%emt 0:01:29][%mdl 2048] Black is under pressure.} Bxg5 {[%emt 0:01:08]} 22. Rhg1 {[%emt 0:00:49]} Bxe3 {[%emt 0:01:22]} 23. Qxe3 {[%emt 0:00:00]} Ng6 {[%emt 0:00:02]} 24. Nce2 {[%emt 0:00:01] Against Nhf4} Qh4 {[%emt 0:02:03]} (24... Rc7 $14) 25. Rxc8+ $16 {[%emt 0:00:32]} Rxc8 {[%emt 0:00:06]} 26. Rc1 {[%emt 0:00:04]} Rf8 {[%emt 0:00:44]} 27. Rc7 {[%emt 0:01:55]} (27. a4 $142) 27... Bc8 {[%emt 0:00:23]} (27... Ba8 $142) 28. Qc3 {[%emt 0:00:19] &Bianco is much more active.} Qd8 {[%emt 0:01:45]} (28... Bh3 $16) 29. a4 $18 {[%emt 0:00:27]} Ne5 {[%emt 0:00:04]} (29... Nf6 $142 30. b3 Ne5) 30. Qc5 {[%emt 0:00:29]} Nf6 {[%emt 0:02:27]} 31. Qe7 {[%emt 0:00:50]} Qxe7 {[%emt 0:00:33]} 32. Rxe7 {[%emt 0:00:00]} Nc4 {[%emt 0:00:01]} 33. Rc7 {[%emt 0:00:52]} g5 {[%emt 0:00:12]} 34. Bxc4 {[%emt 0:00:35]} dxc4 {[%emt 0:00:00]} 35. Rxc4 {[%emt 0:00:01]} Bb7 {[%emt 0:00:35]} 36. Rc5 {[%emt 0:00:07]} h6 {[%emt 0:00:04]} 37. b4 {[%emt 0:00:21]} Ra8 {[%emt 0:00:04]} 38. Nc3 {[%emt 0:00:09]} g4 {[%emt 0:00:06]} 39. fxg4 {[%emt 0:00:05] aiming for Kb2.} Ne4 {[%emt 0:00:03]} 40. Nxe4 {[%emt 0:00:35]} Bxe4+ {[%emt 0:00:00][%mdl 4096] Endgame KRB-KRN} 41. Kb2 {[%emt 0:00:01]} Rxa4 {[%emt 0:00:01]} 42. Kb3 {[%emt 0:00:00]} Ra1 {[%emt 0:00:00]} 43. Re5 {[%emt 0:00:04]} Rb1+ {[%emt 0:00:17]} 44. Kc3 {[%emt 0:00:06]} Bg2 {[%emt 0:00:26]} 45. b5 {[%emt 0:00:27]} Kh7 {[%emt 0:00:09]} (45... Bh3 {is a better defense.} 46. Nf5 Bf1) 46. Nb3 {[%emt 0:01:19]} Kg6 {[%emt 0:00:26]} 47. b6 {[%emt 0:00:04]} f6 {[%emt 0:00:18]} 48. Rb5 {[%emt 0:00:52]} Rh1 {[%emt 0:00:04]} 49. Nd4 {[%emt 0:01:21] And now Nf5 would win.} (49. b7 Bxb7 50. Rxb7 Rxh2 $11) 49... Rxh2 $2 {[%emt 0:00:04]} (49... Bb7 50. Ne6 Rc1+ 51. Kd3 Rd1+ 52. Kc4 Rc1+ 53. Kd4 Rd1+ 54. Kc3 Rc1+ 55. Kd4 Rd1+ 56. Kc3 Rc1+) 50. Ne6 {[%emt 0:00:01] Threatening mate with Nf4+.} ({Weaker is} 50. b7 Bxb7 51. Rxb7 h5 $11) 50... Kf7 {[%emt 0:01:06] [#]} 51. Nf4 {[%emt 0:00:06]} ({Worse is} 51. b7 Bxb7 52. Nd8+ Kg6 53. Rxb7 h5 $11) 51... Bh1 {[%emt 0:01:06]} (51... Bb7 52. Rc5 Ke8) 52. b7 {[%emt 0:00:05] White is clearly winning.} Bxb7 {[%emt 0:00:01]} 53. Rxb7+ {[%emt 0:00:01]} Kf8 {[%emt 0:00:28]} 54. Kd4 {[%emt 0:00:07] Weighted Error Value: White=0.18 (very precise) /Black=0.27 (precise)} 1-0

[Event "MCCT Oslo Esports Cup 2022"]
[Site "Oslo"]
[Date "2022.04.20"]
[Round "2.2"]
[White "Le, Quang Liem"]
[Black "Carlsen, Magnus"]
[Result "1/2-1/2"]
[ECO "E11"]
[WhiteElo "2709"]
[BlackElo "2864"]
[Annotator "TA"]
[PlyCount "99"]
[EventDate "2022.04.14"]
[EventType "tourn"]
[EventCountry "NOR"]
[SourceTitle "playchess.com"]
[Source "ChessBase"]
[SourceQuality "1"]
[TimeControl "1500+10"]

{[%evp 19,99,15,14,6,6,6,6,6,6,4,5,7,10,8,18,6,6,9,16,10,12,0,0,0,0,0,0,0,0,0,0,0,0,0,0,0,0,0,0,0,0,0,0,0,0,0,0,0,0,0,0,0,0,0,0,0,0,0,0,0,0,0,0,3,3,0,0,0,0,0,0,0,0,0,0,0,0,0,0,0,0,0]} 1. d4 {[%emt 0:10:00]} d5 {[%emt 0:10:00]} 2. c4 {[%emt 0:00:05]} e6 {[%emt 0:00:05]} 3. Nf3 {[%emt 0:00:02]} c6 {[%emt 0:00:01]} 4. Bg5 {[%emt 0:00:13]} Be7 {[%emt 0:00:19]} 5. Bxe7 {[%emt 0:00:03]} Qxe7 {[%emt 0:00:01]} 6. e3 {[%emt 0:00:04]} Nf6 {[%emt 0:00:04]} 7. Nc3 {[%emt 0:00:07]} O-O {[%emt 0:00:04]} 8. Rc1 {[%emt 0:00:30]} Rd8 {[%emt 0:00:13]} 9. Qc2 {[%emt 0:01:13]} dxc4 {[%emt 0:00:19]} 10. Bxc4 {[%emt 0:00:03]} c5 {[%emt 0:00:01] The position is equal.} 11. O-O {[%emt 0:00:08] E11: Bogo-Indian.} cxd4 {[%emt 0:00:07]} 12. Nxd4 {[%emt 0:00:03]} Bd7 {[%emt 0:00:02]} 13. Rfd1 {[%emt 0:00:37]} Nc6 {[%emt 0:00:03]} 14. Nf3 {[%emt 0:00:10] [#]} Be8 $146 {[%emt 0:00:05]} ({Predecessor:} 14... Rac8 15. a3 Be8 16. Be2 h6 17. h3 Rxd1+ 18. Rxd1 Rd8 19. Rxd8 Qxd8 20. Qd3 Qxd3 21. Bxd3 Kf8 22. Kf1 Ke7 23. Ke2 {½-½ (23) Jovanic,O (2515)-Saric,A (2530) Dublin 2019}) 15. h3 {[%emt 0:00:15]} Rac8 {[%emt 0:00:05]} 16. a3 {[%emt 0:00:13]} h6 {[%emt 0:00:36]} 17. Rxd8 {[%emt 0:00:23]} Rxd8 {[%emt 0:00:04]} 18. Bd3 {[%emt 0:00:10]} Qd6 {[%emt 0:00:27]} 19. Rd1 {[%emt 0:00:23][%cal Od3h7] [#] Threatens to win with Bh7+!} Qc7 {[%emt 0:00:03]} 20. Ne4 {[%emt 0:00:10]} Nxe4 {[%emt 0:00:05]} 21. Bxe4 {[%emt 0:00:00]} Rxd1+ {[%emt 0:00:01]} 22. Qxd1 {[%emt 0:00:02]} Ne7 {[%emt 0:00:01]} 23. Qc2 {[%emt 0:01:40]} Qxc2 {[%emt 0:00:04]} 24. Bxc2 $11 {[%emt 0:00:00][%mdl 4096] Endgame KBN-KBN} Kf8 {[%emt 0:00:02]} 25. Kf1 {[%emt 0:00:10]} Nc8 {[%emt 0:00:07]} 26. Ke2 {[%emt 0:00:23]} Ke7 {[%emt 0:00:03]} 27. e4 {[%emt 0:00:19]} Kd6 {[%emt 0:01:40]} 28. Ke3 {[%emt 0:00:25]} e5 {[%emt 0:00:04]} 29. Nd2 {[%emt 0:00:16]} f6 {[%emt 0:00:04]} 30. Nc4+ {[%emt 0:00:32]} Kc7 {[%emt 0:00:19]} 31. Kd2 {[%emt 0:00:08]} Bf7 {[%emt 0:00:06]} 32. Ne3 {[%emt 0:00:03]} Nd6 {[%emt 0:00:01]} 33. Bd3 {[%emt 0:00:16]} Kc6 {[%emt 0:00:23]} 34. Kc3 {[%emt 0:00:07]} Be6 {[%emt 0:00:30]} 35. h4 {[%emt 0:00:22]} g6 {[%emt 0:00:31]} 36. g3 {[%emt 0:00:30]} g5 {[%emt 0:00:16]} 37. h5 {[%emt 0:00:30]} a5 {[%emt 0:01:22]} 38. g4 {[%emt 0:00:28]} b6 {[%emt 0:00:10][%cal Bb7b6,Bb6b5,Bb5c4][%mdl 32]} 39. f3 {[%emt 0:00:08]} b5 {[%emt 0:00:27]} 40. b4 {[%emt 0:00:33]} a4 {[%emt 0:00:03]} 41. Kb2 {[%emt 0:00:16]} Bc4 {[%emt 0:00:19]} 42. Bxc4 {[%emt 0:00:52]} Nxc4+ {[%emt 0:00:02]} 43. Nxc4 {[%emt 0:00:02]} bxc4 {[%emt 0:00:00] KP-KP} 44. Kc2 {[%emt 0:00:03]} Kb6 $1 {[%emt 0:00:02]} 45. Kd2 {[%emt 0:00:01]} Kc6 {[%emt 0:00:02]} 46. Kc3 {[%emt 0:00:01]} Kb5 {[%emt 0:00:01]} 47. Kc2 $1 {[%emt 0:00:01]} Kc6 {[%emt 0:00:01]} 48. Kc3 {[%emt 0:00:01]} Kb5 {[%emt 0:00:01]} 49. Kc2 {[%emt 0:00:02] [#] Kc3 would kill now.} Kc6 {[%emt 0:00:01]} 50. Kc3 {[%emt 0:00:01] Not much happened in this game.  Weighted Error Value: White=0.01 (flawless) /Black=0.01 (flawless)} 1/2-1/2

[Event "MCCT Oslo Esports Cup 2022"]
[Site "Oslo"]
[Date "2022.04.20"]
[Round "2.3"]
[White "Carlsen, Magnus"]
[Black "Le, Quang Liem"]
[Result "1-0"]
[ECO "E11"]
[WhiteElo "2864"]
[BlackElo "2709"]
[Annotator "TA"]
[PlyCount "67"]
[EventDate "2022.04.14"]
[EventType "tourn"]
[EventCountry "NOR"]
[SourceTitle "playchess.com"]
[Source "ChessBase"]
[SourceQuality "1"]
[TimeControl "1500+10"]

{[%evp 11,67,27,14,9,2,14,12,2,8,8,29,-6,22,0,5,0,5,0,4,10,25,0,68,54,61,76,203,191,189,127,316,301,319,303,393,433,475,495,629,606,592,559,525,345,1519,1452,1121,1071,29983,29983,29987,29988,29990,29991,29991,29992,29996,29997]} 1. d4 {[%emt 0:10:00]} Nf6 {[%emt 0:10:00]} 2. c4 {[%emt 0:00:03]} e6 {[%emt 0:00:02]} 3. Nf3 {[%emt 0:00:02]} d5 {[%emt 0:00:02]} 4. g3 {[%emt 0:00:04]} Bb4+ {[%emt 0:00:20]} 5. Bd2 {[%emt 0:00:04]} a5 {[%emt 0:00:04]} 6. Bg2 {[%emt 0:01:09]} O-O {[%emt 0:00:03]} 7. a3 {[%emt 0:00:35] 7.Qc2 is the modern continuation. E11: Bogo-Indian.} Be7 {[%emt 0:00:09]} 8. Qc2 {[%emt 0:00:01]} Nbd7 {[%emt 0:00:09]} 9. Bf4 {[%emt 0:00:06] The position is equal.} c6 {[%emt 0:00:10]} 10. O-O {[%emt 0:00:17]} a4 {[%emt 0:00:41] [#]} 11. Nc3 $146 {[%emt 0:00:10]} ({Predecessor:} 11. Rd1 Qa5 12. Nbd2 Nh5 13. Be3 f5 14. Nf1 Bd6 15. Bd2 Qa6 {½-½ (38) Mirzoev,A (2518)-Miroshnichenko,E (2626) Al Ain 2013}) 11... Qa5 {[%emt 0:01:38]} (11... dxc4 $5 {[%cal Rb7b5]} 12. Rfd1 Qa5 $11) 12. e4 {[%emt 0:00:04]} dxc4 {[%emt 0:01:08]} 13. Rad1 {[%emt 0:02:41]} Re8 {[%emt 0:03:42]} 14. Rfe1 {[%emt 0:00:30]} Nf8 {[%emt 0:01:14]} 15. Ne5 {[%emt 0:01:07]} Qa6 {[%emt 0:01:28]} 16. h4 {[%emt 0:00:18]} Ng6 {[%emt 0:00:20]} ({Black should try} 16... b5 $11) 17. Nxg6 $14 {[%emt 0:00:53] &Bianco is much more active. The black rooks are badly placed.} hxg6 {[%emt 0:00:00]} 18. Bg5 {[%emt 0:00:08]} Bf8 {[%emt 0:01:34]} (18... Bd7 $16 {was called for.}) 19. e5 $18 {[%emt 0:00:20]} Nd5 {[%emt 0:00:03]} 20. Ne4 {[%emt 0:00:02]} (20. Qe2 $18) 20... b5 $2 {[%emt 0:00:13] [#]} (20... Qb6 $16) 21. h5 $1 {[%emt 0:00:11]} gxh5 {[%emt 0:01:08] [#]} 22. Qe2 $1 {[%emt 0:00:04]} g6 {[%emt 0:00:13]} 23. g4 {[%emt 0:00:02]} h4 {[%emt 0:00:20]} 24. Bxh4 {[%emt 0:00:10]} b4 {[%emt 0:00:06]} 25. Qf3 {[%emt 0:00:18] Against c3} bxa3 {[%emt 0:00:19]} 26. Nf6+ {[%emt 0:01:11]} (26. Ng5 Qb7 27. bxa3 Bg7 $11) ({Less strong is} 26. bxa3 Qb6 $16) 26... Nxf6 {[%emt 0:00:02]} 27. Bxf6 {[%emt 0:00:00]} axb2 $2 {[%emt 0:00:16]} (27... c5) 28. Qh3 {[%emt 0:00:15][%csl Gf6][%cal Rh3h8]} Bg7 {[%emt 0:00:02] Prevents Qh8+.} 29. Be4 {[%emt 0:00:32] Intending Kg2 and mate.} Qb5 {[%emt 0:01:23]} 30. g5 {[%emt 0:01:03] White mates.} Qb3 {[%emt 0:01:09]} 31. Qh4 {[%emt 0:00:24]} Bb7 {[%emt 0:00:11]} 32. Kg2 {[%emt 0:00:31]} c5 {[%emt 0:00:05]} 33. d5 {[%emt 0:00:42]} exd5 {[%emt 0:02:06] [#]} 34. Rh1 $1 {[%emt 0:00:15] Weighted Error Value: White=0.05 (flawless) /Black=0.52} 1-0